fUST/lending_fUST_20240921
["ID","MTS","AMOUNT","RATE_DAILY","PERIOD"]
[338744514,1726907442963,-151.0,0.00015095,2]
[338744516,1726907442973,-151.0,0.00015095,2]
[338744518,1726907442982,-151.0,0.00015095,2]
[338744520,1726907442991,-1339.747826,0.00015095,2]
[338744522,1726907443001,-1339.747826,0.00015095,2]
[338744524,1726907443012,-151.0,0.00015095,2]
[338744526,1726907443021,-151.0,0.00015095,2]
[338744528,1726907443031,-908.649052,0.00015095,2]
[338744530,1726907443042,-908.649052,0.00015095,2]
[338744532,1726907443054,-1622.83544,0.00015095,2]
[338744534,1726907443063,-1622.83544,0.00015095,2]
[338744536,1726907443073,-1503.297783,0.00015095,2]
[338744538,1726907443084,-1503.297783,0.00015095,2]
[338744540,1726907443093,-823.1701592,0.00015096,2]
[338744542,1726907443103,-418.645814,0.00015096,2]
[338744544,1726907443112,-411.651906,0.00015096,2]
[338744546,1726907443121,-822.9317306,0.00015096,2]
[338744547,1726907443131,-411.651906,0.00015096,2]
[338744549,1726907443140,-411.651906,0.00015096,2]
[338744551,1726907443150,-411.651906,0.00015096,2]
[338744554,1726907443161,-411.651906,0.00015096,2]
[338744555,1726907443170,-411.651906,0.00015096,2]
[338744558,1726907443179,-411.651906,0.00015096,2]
[338744560,1726907443189,-411.651906,0.00015096,2]
[338744562,1726907443198,-411.651906,0.00015096,2]
[338744564,1726907443207,-823.303812,0.00015096,2]
[338744566,1726907443216,-411.651906,0.00015096,2]
[338744568,1726907443225,-411.651906,0.00015096,2]
[338744570,1726907443235,-411.651906,0.00015096,2]
[338744572,1726907443244,-411.651906,0.00015096,2]
[338744574,1726907443254,-411.651906,0.00015096,2]
[338744576,1726907443263,-411.651906,0.00015096,2]
[338744578,1726907443274,-411.651906,0.00015096,2]
[338744580,1726907443284,-411.651906,0.00015096,2]
[338744582,1726907443294,-411.651906,0.00015096,2]
[338744584,1726907443303,-151.0,0.00015096,2]
[338744586,1726907443313,-151.0,0.00015096,2]
[338744588,1726907443322,-184.151997,0.00015096,2]
[338744590,1726907443332,-184.151997,0.00015096,2]
[338744592,1726907443341,-150.112233,0.000151,2]
[338744594,1726907443351,-411.651906,0.000151,2]
[338744596,1726907443362,-150.112233,0.000151,2]
[338744598,1726907443371,-150.112233,0.000151,2]
[338744600,1726907443385,-500.0,0.00015102,2]
[338744602,1726907443395,-605.47,0.00015102,2]
[338744605,1726907443404,-500.0,0.00015102,2]
[338744607,1726907443415,-500.0,0.00015102,2]
[338744609,1726907443426,-500.0,0.00015102,2]
[338744611,1726907443436,-500.0,0.00015102,2]
[338744613,1726907443445,-500.0,0.00015102,2]
[338744615,1726907443456,-500.0,0.00015102,2]
[338744617,1726907443466,-500.0,0.00015102,2]
[338744619,1726907443475,-500.0,0.00015102,2]
[338744621,1726907443484,-500.0,0.00015102,2]
[338744623,1726907443494,-500.0,0.00015102,2]
[338744625,1726907443503,-500.0,0.00015102,2]
[338744627,1726907443512,-500.0,0.00015102,2]
[338744629,1726907443522,-500.0,0.00015102,2]
[338744631,1726907443531,-500.0,0.00015102,2]
[338744633,1726907443540,-500.0,0.00015102,2]
[338744635,1726907443549,-500.0,0.00015102,2]
[338744637,1726907443559,-295.02133353,0.00015102,2]
[338744639,1726907443568,-500.0,0.00015102,2]
[338744641,1726907443577,-500.0,0.00015102,2]
[338744643,1726907443586,-577.85401187,0.00015102,2]
[338744645,1726907443595,-500.0,0.00015102,2]
[338744647,1726907443604,-500.0,0.00015102,2]
[338744649,1726907443613,-500.0,0.00015102,2]
[338744651,1726907443623,-627.76,0.00015102,2]
[338744653,1726907443634,-500.0,0.00015102,2]
[338744656,1726907443645,-500.0,0.00015102,2]
[338744658,1726907443656,-205.40282421,0.00015102,2]
[338744660,1726907443665,-500.0,0.00015102,2]
[338744662,1726907443674,-211.4398585,0.00015102,2]
[338744664,1726907443682,-500.0,0.00015102,2]
[338744666,1726907443692,-500.0,0.00015102,2]
[338744667,1726907443700,-166.72683643,0.00015102,2]
[338744669,1726907443710,-500.0,0.00015102,2]
[338744671,1726907443719,-501.05199483,0.00015102,2]
[338744674,1726907443730,-500.0,0.00015102,2]
[338744675,1726907443740,-532.04,0.00015102,2]
[338744677,1726907443750,-587.32,0.00015102,2]
[338744679,1726907443759,-628.26,0.00015102,2]
[338744681,1726907443768,-518.87,0.00015102,2]
[338744683,1726907443778,-500.0,0.00015102,2]
[338744685,1726907443787,-500.0,0.00015102,2]
[338744687,1726907443796,-500.0,0.00015102,2]
[338744689,1726907443805,-500.0,0.00015102,2]
[338744691,1726907443815,-500.0,0.00015102,2]
[338744693,1726907443824,-500.0,0.00015102,2]
[338744695,1726907443833,-500.0,0.00015102,2]
[338744697,1726907443842,-832.89,0.00015102,2]
[338744698,1726907443851,-500.0,0.00015102,2]
[338744700,1726907443860,-151.0,0.00015102,2]
[338744702,1726907443869,-500.0,0.00015102,2]
[338744704,1726907443879,-824.79,0.00015102,2]
[338744706,1726907443893,-500.0,0.00015102,2]
[338744708,1726907443902,-500.0,0.00015102,2]
[338744710,1726907443911,-500.0,0.00015102,2]
[338744712,1726907443921,-500.0,0.00015102,2]
[338744714,1726907443930,-15372.65,0.00015102,2]
[338744716,1726907443939,-803.28,0.00015102,2]
[338744718,1726907443948,-2203.4,0.00015102,2]
[338744720,1726907443957,-500.0,0.00015102,2]
[338744722,1726907443967,-209.758641,0.00015102,2]
[338744724,1726907443976,-500.0,0.00015102,2]
[338744726,1726907443985,-209.758641,0.00015102,2]
[338744728,1726907443994,-466.124755,0.00015102,2]
[338744730,1726907444002,-500.0,0.00015102,2]
[338744732,1726907444012,-667.87,0.00015103,2]
[338744734,1726907444021,-940.93,0.00015103,2]
[338744736,1726907444031,-500.0,0.00015103,2]
[338744737,1726907444041,-151.0,0.00015103,2]
[338744740,1726907444050,-200.0,0.00015103,2]
[338744741,1726907444059,-500.0,0.00015103,2]
[338744743,1726907444069,-541.023795,0.00015103,2]
[338744745,1726907444078,-541.023795,0.00015103,2]
[338744746,1726907444086,-151.0,0.00015103,2]
[338744747,1726907444096,-151.0,0.00015103,2]
[338744748,1726907444105,-500.0,0.00015103,2]
[338744749,1726907444113,-877.85,0.00015103,2]
[338744750,1726907444122,-954.9,0.00015103,2]
[338744751,1726907444137,-500.0,0.00015103,2]
[338744752,1726907444146,-500.0,0.00015103,2]
[338744753,1726907444155,-500.0,0.00015103,2]
[338744754,1726907444165,-500.0,0.00015103,2]
[338744755,1726907444175,-500.0,0.00015103,2]
[338744756,1726907444184,-1158.809698,0.00015103,2]
[338744757,1726907444193,-1158.809698,0.00015103,2]
[338744758,1726907444202,-151.0,0.00015103,2]
[338744759,1726907444211,-151.444762,0.00015103,2]
[338744760,1726907444220,-500.0,0.00015103,2]
[338744761,1726907444230,-500.0,0.00015103,2]
[338744762,1726907444239,-500.0,0.00015103,2]
[338744763,1726907444248,-151.0,0.00015103,2]
[338744764,1726907444258,-500.0,0.00015103,2]
[338744765,1726907444267,-151.0,0.00015103,2]
[338744766,1726907444277,-355.889496,0.00015103,2]
[338744767,1726907444286,-500.0,0.00015103,2]
[338744768,1726907444295,-355.889496,0.00015103,2]
[338744769,1726907444304,-151.0,0.00015103,2]
[338744770,1726907444314,-500.0,0.00015103,2]
[338744771,1726907444323,-151.523071,0.00015103,2]
[338744772,1726907444332,-922.638677,0.00015103,2]
[338744773,1726907444341,-922.638677,0.00015103,2]
[338744774,1726907444350,-1850.3,0.00015103,2]
[338744775,1726907444360,-297.877748,0.00015103,2]
[338744776,1726907444370,-297.877748,0.00015103,2]
[338744777,1726907444383,-151.0,0.00015103,2]
[338744778,1726907444393,-217.736829,0.00015103,2]
[338744779,1726907444402,-500.0,0.00015103,2]
[338744780,1726907444411,-151.0,0.00015103,2]
[338744781,1726907444420,-217.736829,0.00015103,2]
[338744782,1726907444430,-151.0,0.00015103,2]
[338744783,1726907444439,-151.0,0.00015103,2]
[338744785,1726907444448,-500.0,0.00015103,2]
[338744787,1726907444459,-1498.440155,0.00015103,2]
[338744789,1726907444468,-684.771537,0.00015103,2]
[338744791,1726907444478,-1498.440155,0.00015103,2]
[338744793,1726907444486,-684.771537,0.00015103,2]
[338744795,1726907444495,-151.0,0.00015103,2]
[338744797,1726907444504,-229.64185582,0.00015103,2]
[338744799,1726907444513,-151.0,0.00015103,2]
[338744801,1726907444523,-500.668583,0.00015103,2]
[338744803,1726907444532,-151.0,0.00015103,2]
[338744805,1726907444540,-500.0,0.00015103,2]
[338744806,1726907444550,-500.668583,0.00015103,2]
[338744808,1726907444559,-500.0,0.00015105,2]
[338744810,1726907444570,-500.0,0.00015105,2]
[338744812,1726907444579,-1480.54,0.00015105,2]
[338744814,1726907444588,-500.0,0.00015105,2]
[338744816,1726907444598,-500.0,0.00015105,2]
[338744818,1726907444607,-410.07372012,0.00015119,2]
[338744820,1726907444616,-8277.93883655,0.00015119,2]
[338744823,1726907444636,-466.124755,0.00015102,2]
[338744825,1726907444645,-1400.73131056,0.00015119,2]
[338744854,1726907444922,-2391.33327025,0.00015119,2]
[338744855,1726907444931,-169.46689441,0.00015185,2]
[338744857,1726907444941,-150.112233,0.000152,2]
[338744859,1726907444950,-150.112233,0.000152,2]
[338744861,1726907444960,-150.112233,0.000152,2]
[338744863,1726907444969,-610.024,0.00015218,2]
[338744865,1726907444978,-153.946,0.00015218,2]
[338744867,1726907444988,-1216.0,0.00015218,2]
[338744869,1726907444997,-151.41,0.00015288,2]
[338744871,1726907445006,-214.073,0.00015288,2]
[338744873,1726907445015,-150.0,0.0001529,2]
[338744875,1726907445025,-220.767,0.0001529,2]
[338744877,1726907445033,-250.996,0.0001529,2]
[338744879,1726907445042,-151.0,0.0001529,2]
[338744881,1726907445051,-151.0,0.0001529,2]
[338744883,1726907445061,-496.222771,0.0001529,2]
[338744885,1726907445070,-496.222771,0.0001529,2]
[338744886,1726907445079,-150.112233,0.000153,2]
[338744888,1726907445089,-150.112233,0.000153,2]
[338744890,1726907445098,-620.00298386,0.00015304,2]
[338744892,1726907445107,-72.99464802,0.00015345,2]
[338748061,1726907513629,500.0,0.00011892,2]
[338748068,1726907610839,2170.953969,0.00013699,2]
[338748070,1726907800766,162.397312,0.00011781,2]
[338748071,1726907819364,500.0,0.00011892,2]
[338748074,1726908216465,3988.3366867,0.0001328,2]
[338748077,1726908325048,1528.945359,0.00013699,2]
[338748079,1726908381630,11573.97821687,0.000133,2]
[338748080,1726908381657,30546.81078313,0.000133,2]
[338748081,1726908423743,162.397312,0.00011781,2]
[338750179,1726908631887,-2196.5795364,0.00014179,2]
[338750182,1726908631899,-1007.6270752,0.00014179,2]
[338750232,1726908637958,-108.48269313,0.00014179,2]
[338750234,1726908637968,-842.15374089,0.00014179,2]
[338750236,1726908637977,-208.514626,0.0001418,2]
[338750237,1726908637987,-300.0,0.00014277,2]
[338750239,1726908637996,-300.0,0.00014277,2]
[338750241,1726908638008,-500.0,0.00014278,2]
[338750243,1726908638018,-554.92,0.00014278,2]
[338750244,1726908638028,-500.0,0.00014278,2]
[338750246,1726908638038,-500.0,0.00014278,2]
[338750248,1726908638050,-500.0,0.00014278,2]
[338750250,1726908638060,-500.0,0.00014278,2]
[338750252,1726908638070,-500.0,0.00014278,2]
[338750253,1726908638080,-500.0,0.00014278,2]
[338750255,1726908638089,-500.0,0.00014278,2]
[338750257,1726908638099,-500.0,0.00014278,2]
[338750259,1726908638109,-256.05871518,0.00014278,2]
[338750261,1726908638125,-243.94128482,0.00014278,2]
[338750263,1726908638135,-641.51947122,0.00014278,2]
[338750264,1726908638145,-500.0,0.00014278,2]
[338750266,1726908638154,-213.07478154,0.00014278,2]
[338750268,1726908638163,-500.0,0.00014278,2]
[338750269,1726908638172,-500.0,0.00014278,2]
[338750271,1726908638182,-500.0,0.00014278,2]
[338750273,1726908638191,-500.0,0.00014278,2]
[338750275,1726908638201,-500.0,0.00014278,2]
[338750276,1726908638210,-500.0,0.00014278,2]
[338750278,1726908638219,-500.0,0.00014278,2]
[338750280,1726908638233,-500.0,0.00014278,2]
[338750282,1726908638243,-500.0,0.00014278,2]
[338750283,1726908638252,-687.32,0.00014278,2]
[338750285,1726908638262,-500.0,0.00014278,2]
[338750287,1726908638271,-500.0,0.00014278,2]
[338750289,1726908638282,-500.0,0.00014278,2]
[338750291,1726908638293,-500.0,0.00014278,2]
[338750293,1726908638305,-1836.17,0.00014278,2]
[338750295,1726908638316,-500.0,0.00014278,2]
[338750296,1726908638326,-795.75,0.00014279,2]
[338750298,1726908638336,-731.54,0.00014279,2]
[338750300,1726908638347,-500.0,0.00014279,2]
[338750302,1726908638356,-500.0,0.00014279,2]
[338750304,1726908638367,-500.0,0.00014279,2]
[338750305,1726908638377,-500.0,0.00014279,2]
[338750307,1726908638386,-500.0,0.00014279,2]
[338750309,1726908638395,-592.06564818,0.00014279,2]
[338750311,1726908638404,-500.0,0.00014279,2]
[338750313,1726908638415,-500.0,0.00014279,2]
[338750314,1726908638425,-500.0,0.00014279,2]
[338750316,1726908638435,-500.0,0.00014279,2]
[338750318,1726908638446,-1541.92,0.00014279,2]
[338750320,1726908638456,-220.74419987,0.00014279,2]
[338750322,1726908638466,-500.0,0.00014279,2]
[338750324,1726908638477,-500.0,0.00014279,2]
[338750325,1726908638486,-500.0,0.00014279,2]
[338750327,1726908638496,-500.0,0.00014279,2]
[338750329,1726908638506,-500.0,0.00014279,2]
[338750331,1726908638515,-500.0,0.00014279,2]
[338750332,1726908638525,-669.4,0.00014279,2]
[338750334,1726908638534,-556.56,0.00014279,2]
[338750336,1726908638544,-500.0,0.00014279,2]
[338750338,1726908638553,-784.11,0.00014279,2]
[338750340,1726908638562,-200.0,0.00014279,2]
[338750341,1726908638571,-500.0,0.00014279,2]
[338750343,1726908638583,-500.0,0.0001428,2]
[338750345,1726908638593,-579.5715517,0.0001428,2]
[338750347,1726908638602,-500.0,0.0001428,2]
[338750348,1726908638612,-549.29,0.0001428,2]
[338750350,1726908638621,-500.0,0.0001428,2]
[338750352,1726908638630,-513.61643952,0.0001428,2]
[338750354,1726908638640,-500.0,0.0001428,2]
[338750355,1726908638649,-500.0,0.0001428,2]
[338750357,1726908638659,-500.0,0.0001428,2]
[338750359,1726908638668,-500.0,0.0001428,2]
[338750361,1726908638682,-500.0,0.0001428,2]
[338750363,1726908638692,-513.91,0.0001428,2]
[338750364,1726908638701,-500.0,0.0001428,2]
[338750366,1726908638711,-728.78,0.0001428,2]
[338750368,1726908638723,-500.0,0.0001428,2]
[338750370,1726908638733,-549.73,0.0001428,2]
[338750372,1726908638742,-500.0,0.0001428,2]
[338750373,1726908638752,-217.22022909,0.0001428,2]
[338750374,1726908638763,-500.0,0.0001428,2]
[338750375,1726908638773,-500.0,0.0001428,2]
[338750376,1726908638783,-500.0,0.0001428,2]
[338750377,1726908638794,-500.0,0.0001428,2]
[338750378,1726908638805,-500.0,0.0001428,2]
[338750379,1726908638816,-500.0,0.0001428,2]
[338750380,1726908638828,-500.0,0.0001428,2]
[338750381,1726908638838,-500.0,0.0001428,2]
[338750382,1726908638849,-500.0,0.0001428,2]
[338750383,1726908638859,-1295.03,0.0001428,2]
[338750384,1726908638869,-500.0,0.0001428,2]
[338750385,1726908638879,-500.0,0.0001428,2]
[338750386,1726908638889,-500.0,0.0001428,2]
[338750387,1726908638898,-500.0,0.0001428,2]
[338750388,1726908638908,-151.8435352,0.0001428,2]
[338750389,1726908638918,-500.0,0.00014281,2]
[338750390,1726908638930,-1528.945359,0.00014384,2]
[338750391,1726908638940,-203.3602733,0.00014443,2]
[338750392,1726908638950,-54737.8115342,0.00014534,2]
[338750393,1726908638961,-6864.94399483,0.00014534,2]
[338750394,1726908638971,-3224.6144046,0.00014535,2]
[338750395,1726908638982,-54737.8115342,0.00014543,2]
[338750396,1726908638992,-6864.94399483,0.00014543,2]
[338750397,1726908639002,-500.0,0.00014552,2]
[338750398,1726908639012,-554.92,0.00014552,2]
[338750399,1726908639022,-500.0,0.00014552,2]
[338750400,1726908639032,-500.0,0.00014552,2]
[338750401,1726908639042,-500.0,0.00014552,2]
[338750402,1726908639051,-500.0,0.00014552,2]
[338750403,1726908639061,-500.0,0.00014552,2]
[338750404,1726908639070,-500.0,0.00014552,2]
[338750405,1726908639080,-500.0,0.00014552,2]
[338750406,1726908639090,-500.0,0.00014552,2]
[338750407,1726908639100,-500.0,0.00014552,2]
[338750408,1726908639110,-249.60447137,0.00014552,2]
[338750409,1726908639120,-500.0,0.00014552,2]
[338750410,1726908639129,-500.0,0.00014552,2]
[338750411,1726908639139,-483.18807146,0.00014552,2]
[338750412,1726908639149,-500.0,0.00014552,2]
[338750413,1726908639159,-500.0,0.00014552,2]
[338750414,1726908639169,-500.0,0.00014552,2]
[338750415,1726908639179,-687.32,0.00014552,2]
[338750416,1726908639189,-500.0,0.00014552,2]
[338750417,1726908639198,-208.7374,0.00014552,2]
[338750418,1726908639207,-500.0,0.00014552,2]
[338750419,1726908639217,-1836.17,0.00014552,2]
[338750420,1726908639227,-500.0,0.00014552,2]
[338750421,1726908639237,-795.75,0.00014553,2]
[338750422,1726908639246,-731.54,0.00014553,2]
[338750423,1726908639256,-500.0,0.00014553,2]
[338750424,1726908639266,-500.0,0.00014553,2]
[338750425,1726908639275,-500.0,0.00014553,2]
[338750426,1726908639284,-500.0,0.00014553,2]
[338750427,1726908639295,-500.0,0.00014553,2]
[338750428,1726908639305,-500.0,0.00014553,2]
[338750429,1726908639314,-500.0,0.00014553,2]
[338750430,1726908639323,-500.0,0.00014553,2]
[338750431,1726908639335,-500.0,0.00014553,2]
[338750432,1726908639344,-1541.92,0.00014553,2]
[338750433,1726908639354,-632.36569457,0.00014553,2]
[338750434,1726908639364,-500.0,0.00014553,2]
[338750435,1726908639373,-500.0,0.00014553,2]
[338750436,1726908639382,-500.0,0.00014553,2]
[338750437,1726908639392,-669.4,0.00014553,2]
[338750438,1726908639401,-556.56,0.00014553,2]
[338750439,1726908639411,-500.0,0.00014553,2]
[338750440,1726908639421,-784.11,0.00014553,2]
[338750441,1726908639430,-200.0,0.00014553,2]
[338750443,1726908639439,-500.0,0.00014553,2]
[338750444,1726908639448,-500.0,0.00014554,2]
[338750445,1726908639458,-500.0,0.00014554,2]
[338750447,1726908639468,-549.29,0.00014554,2]
[338750448,1726908639478,-500.0,0.00014554,2]
[338750450,1726908639490,-500.0,0.00014554,2]
[338750451,1726908639499,-156.17938547,0.00014554,2]
[338750452,1726908639509,-500.0,0.00014554,2]
[338750454,1726908639519,-500.0,0.00014554,2]
[338750455,1726908639528,-513.91,0.00014554,2]
[338750457,1726908639538,-500.0,0.00014554,2]
[338750458,1726908639547,-728.78,0.00014554,2]
[338750460,1726908639557,-500.0,0.00014554,2]
[338750462,1726908639567,-549.73,0.00014554,2]
[338750464,1726908639577,-500.0,0.00014554,2]
[338750466,1726908639597,-500.0,0.00014554,2]
[338750468,1726908639607,-500.0,0.00014554,2]
[338750470,1726908639616,-500.0,0.00014554,2]
[338750472,1726908639626,-500.0,0.00014554,2]
[338750474,1726908639635,-500.0,0.00014554,2]
[338750477,1726908639647,-500.0,0.00014554,2]
[338750479,1726908639657,-500.0,0.00014554,2]
[338750481,1726908639666,-500.0,0.00014554,2]
[338750483,1726908639675,-500.0,0.00014554,2]
[338750485,1726908639685,-1295.03,0.00014554,2]
[338750487,1726908639695,-500.0,0.00014554,2]
[338750489,1726908639704,-500.0,0.00014554,2]
[338750491,1726908639716,-500.0,0.00014554,2]
[338750493,1726908639725,-500.0,0.00014555,2]
[338750495,1726908639735,-151.0,0.0001462,2]
[338750497,1726908639746,-151.0,0.0001462,2]
[338750499,1726908639755,-14249.99294651,0.00014627,2]
[338750513,1726908639881,-40487.81858769,0.00014627,2]
[338750515,1726908639891,-6864.94399483,0.00014627,2]
[338750517,1726908639900,-500.0,0.00014632,2]
[338750519,1726908639910,-203.3602733,0.00014651,2]
[338750521,1726908639920,-195.0,0.0001468,2]
[338750523,1726908639930,-54737.8115342,0.00014691,2]
[338750525,1726908639939,-6864.94399483,0.00014691,2]
[338750527,1726908639949,-1177.96,0.000147,2]
[338750529,1726908639959,-618.36678515,0.000147,2]
[338750531,1726908639969,-500.0,0.000147,2]
[338750532,1726908639978,-500.0,0.000147,2]
[338750534,1726908639988,-500.0,0.000147,2]
[338750536,1726908639997,-368.3802166,0.000147,2]
[338750538,1726908640008,-500.0,0.000147,2]
[338750540,1726908640018,-500.0,0.000147,2]
[338750542,1726908640028,-425.63159022,0.000147,2]
[338750544,1726908640037,-500.0,0.000147,2]
[338750546,1726908640047,-500.0,0.000147,2]
[338750548,1726908640056,-500.0,0.000147,2]
[338750550,1726908640065,-500.0,0.000147,2]
[338750552,1726908640075,-500.0,0.000147,2]
[338750554,1726908640084,-500.0,0.000147,2]
[338750556,1726908640094,-500.0,0.000147,2]
[338750558,1726908640103,-59773.36762245,0.00014701,2]
[338750559,1726908640113,-855.37512612,0.00014726,2]
[338750561,1726908640124,-151.0,0.00014801,2]
[338750563,1726908640134,-151.0,0.00014801,2]
[338750565,1726908640143,-4793.75316081,0.00014808,2]
[338750568,1726908640157,-9682.51393968,0.00014808,2]
[338750570,1726908640169,-40261.54443371,0.00014808,2]
[338750572,1726908640179,-6864.94399483,0.00014808,2]
[338750574,1726908640189,-500.0,0.00014815,2]
[338750576,1726908640199,-640.23618651,0.00014815,2]
[338750578,1726908640209,-500.0,0.00014815,2]
[338750580,1726908640219,-500.0,0.00014815,2]
[338750582,1726908640229,-311.22998536,0.00014815,2]
[338750584,1726908640240,-500.0,0.00014815,2]
[338750586,1726908640251,-250.02982261,0.00014815,2]
[338750588,1726908640261,-500.0,0.00014815,2]
[338750590,1726908640270,-500.0,0.00014815,2]
[338750592,1726908640280,-500.0,0.00014815,2]
[338750594,1726908640290,-460.91501293,0.00014815,2]
[338750596,1726908640300,-500.0,0.00014815,2]
[338750598,1726908640311,-500.0,0.00014815,2]
[338750600,1726908640321,-449.77860203,0.00014815,2]
[338750602,1726908640333,-500.0,0.00014815,2]
[338750604,1726908640343,-500.0,0.00014815,2]
[338750606,1726908640354,-500.0,0.00014815,2]
[338750608,1726908640364,-208.53870704,0.00014815,2]
[338750611,1726908640378,-291.46129296,0.00014815,2]
[338750612,1726908640387,-357.4212081,0.00014815,2]
[338750880,1726908642997,-142.5787919,0.00014815,2]
[338750882,1726908643008,-339.74995661,0.00014815,2]
[338751145,1726908645947,-160.25004339,0.00014815,2]
[338751146,1726908645957,-428.75569412,0.00014815,2]
[338756233,1726908727883,500.0,0.00012988,2]
[338758089,1726908818390,20544.1688932,0.00013633,2]
[338758090,1726908829674,500.0,0.00012988,2]
[338758094,1726908958154,162.397312,0.00011781,2]
[338758104,1726909496432,3096.44241403,0.00019911,120]
[338758105,1726909547994,509.648453,0.00013699,2]
[338758106,1726909579074,162.397312,0.00011781,2]
[338758110,1726909726735,500.0,0.00012988,2]
[338758447,1726909838185,-300.0,0.00014276,2]
[338758448,1726909838195,-300.0,0.00014276,2]
[338758449,1726909838205,-494.56465757,0.00014277,2]
[338758450,1726909838215,-508.67,0.00014277,2]
[338758451,1726909838224,-500.0,0.00014277,2]
[338758452,1726909838234,-500.0,0.00014277,2]
[338758453,1726909838243,-500.0,0.00014277,2]
[338758454,1726909838253,-500.0,0.00014277,2]
[338758455,1726909838262,-500.0,0.00014277,2]
[338758456,1726909838272,-500.0,0.00014277,2]
[338758457,1726909838282,-500.0,0.00014277,2]
[338758458,1726909838291,-630.05,0.00014277,2]
[338758459,1726909838300,-500.0,0.00014277,2]
[338758460,1726909838310,-613.62,0.00014277,2]
[338758461,1726909838323,-12810.55,0.00014277,2]
[338758462,1726909838332,-1683.15,0.00014277,2]
[338758463,1726909838342,-511.77802597,0.00014278,2]
[338758470,1726909840145,-156.27197403,0.00014278,2]
[338758472,1726909840155,-500.0,0.00014278,2]
[338758474,1726909840165,-500.0,0.00014278,2]
[338758476,1726909840175,-500.0,0.00014278,2]
[338758478,1726909840185,-500.0,0.00014278,2]
[338758480,1726909840195,-500.0,0.00014278,2]
[338758482,1726909840205,-416.98969922,0.00014278,2]
[338758484,1726909840215,-503.92,0.00014278,2]
[338758487,1726909840232,-500.0,0.00014278,2]
[338758489,1726909840244,-500.0,0.00014278,2]
[338758491,1726909840254,-500.0,0.00014278,2]
[338758493,1726909840264,-500.0,0.00014278,2]
[338758495,1726909840274,-500.0,0.00014278,2]
[338758497,1726909840284,-500.0,0.00014278,2]
[338758499,1726909840293,-500.0,0.00014278,2]
[338758501,1726909840303,-156.44103273,0.00014278,2]
[338758503,1726909840314,-500.0,0.00014278,2]
[338758505,1726909840327,-1187.11,0.00014278,2]
[338758507,1726909840337,-500.0,0.00014278,2]
[338758509,1726909840349,-500.0,0.00014279,2]
[338758511,1726909840363,-509.648453,0.00014384,2]
[338758514,1726909840374,-2579.6915238,0.00014535,2]
[338758516,1726909840384,-508.67,0.00014551,2]
[338758517,1726909840395,-500.0,0.00014551,2]
[338758520,1726909840406,-500.0,0.00014551,2]
[338758522,1726909840416,-500.0,0.00014551,2]
[338758524,1726909840426,-575.25486534,0.00014551,2]
[338758526,1726909840436,-500.0,0.00014551,2]
[338758528,1726909840446,-500.0,0.00014551,2]
[338758530,1726909840456,-500.0,0.00014551,2]
[338758532,1726909840465,-500.0,0.00014551,2]
[338758534,1726909840475,-729.44,0.00014551,2]